bitfinex/quotes_ETHUSD_20250404
["timestamp","ask_amount","ask_price","bid_price","bid_amount"]
[1743789758218,5.49828,1818.8,1818.2,6.3285]
[1743789758976,0.1,1818.9,1818.2,0.8287]
[1743789759279,0.1,1818.9,1818.5,5.49875]
[1743789759827,0.1,1818.9,1818.7,5.49827]
[1743789759983,0.1,1818.9,1818.8,5.55310636]
[1743789760182,0.1,1818.9,1818.8,11.62713]
[1743789762320,0.1,1818.9,1818.8,6.129]
[1743789763190,0.1,1818.9,1818.8,11.62713]
[1743789763394,0.1,1818.9,1818.8,13.339673]
[1743789763607,0.1,1818.9,1818.8,7.841543]
[1743789763812,0.1,1818.9,1818.4,5.49907]
[1743789763981,0.1,1818.9,1818.5,6.107]
[1743789764181,5.49824,1818.8,1818.2,12.43549]
[1743789764923,0.1,1818.9,1818.4,5.49933]
[1743789765081,0.1,1818.9,1818.7,5.49831]
[1743789765294,0.1,1818.9,1818.8,5.55310486]
[1743789765496,0.1,1818.9,1818.8,9.90450486]
[1743789765697,0.1,1818.9,1818.8,9.29953]
[1743789765928,0.1,1818.9,1818.7,5.49822]
[1743789766138,0.1,1818.9,1818.8,5.49813]
[1743789766627,5.49453,1820.0,1819.5,5.4959]
[1743789766827,5.4954,1819.8,1819.4,6.142]
[1743789767136,5.4954,1819.8,1819.1,6.30659]
[1743789767137,10.99176,1819.6,1819.1,6.9644]
[1743789767427,5.49634,1819.4,1819.1,6.155]
[1743789767632,5.4962,1819.5,1819.1,6.155]
[1743789767839,5.49651,1819.4,1818.8,31.5549]
[1743789767994,5.49602,1819.5,1818.9,5.49766]
[1743789768195,5.49574,1819.6,1818.9,5.49766]
[1743789768391,6.4077418,1819.6,1819.0,5.49751]
[1743789768596,5.49613,1819.5,1818.9,10.99538]
[1743789768905,5.49613,1819.5,1818.9,5.49766]
[1743789769297,5.49613,1819.5,1818.9,5.49763]
[1743789769494,5.49632,1819.4,1818.8,37.05297]
[1743789769707,5.49613,1819.5,1818.9,5.49771]
[1743789769898,10.99238,1819.5,1818.9,5.49771]
[1743789770125,5.49613,1819.5,1818.9,5.49771]
[1743789770322,5.49649,1819.4,1818.8,41.308111]
[1743789770528,0.7693,1819.3,1818.4,1.903084]
[1743789770715,5.49711,1819.2,1818.6,5.49869]
[1743789770911,0.7693,1819.3,1818.4,3.8032]
[1743789771113,5.49603,1819.5,1819.0,5.49738]
[1743789771446,5.49603,1819.5,1818.9,5.4977]
[1743789771447,5.49643,1819.4,1818.9,5.4977]
[1743789771652,5.49601,1819.5,1818.6,9.04869]
[1743789771950,5.49601,1819.5,1818.9,10.99524]
[1743789772250,7.2320418,1819.6,1819.1,5.49713]
[1743789772456,5.49541,1819.7,1819.1,6.32661]
[1743789772604,5.49511,1819.8,1819.3,5.49652]
[1743789773354,10.99043,1819.8,1819.2,5.49686]
[1743789773528,10.99042,1819.8,1819.2,5.49686]
[1743789773723,5.49511,1819.8,1819.2,5.49677]
[1743789774051,5.49511,1819.8,1819.3,5.49656]
[1743789774250,0.1,1819.9,1819.4,6.139]
[1743789774448,5.59492,1819.9,1819.4,11.63521]
[1743789774655,5.59492,1819.9,1819.4,6.139]
[1743789774853,5.49524,1819.8,1819.4,6.139]
[1743789775032,0.1,1819.9,1819.4,6.139]
[1743789775430,0.1,1819.9,1819.5,5.496]
[1743789775647,0.1,1819.9,1819.4,11.63521]
[1743789775954,0.1,1819.9,1819.4,17.13126]
[1743789776154,0.1,1819.9,1819.4,6.139]
[1743789776328,5.59498,1819.9,1819.4,6.139]
[1743789776534,6.154431,1819.9,1819.4,6.139]
[1743789776753,0.659451,1819.9,1819.5,5.49597]
[1743789776959,0.1,1819.9,1819.4,11.63518]
[1743789777129,5.59493,1819.9,1819.4,11.63518]
[1743789777753,0.1,1819.9,1819.4,11.63513]
[1743789777954,0.784,1819.8,1819.1,6.32671]
[1743789778132,0.1,1819.9,1819.5,5.49591]
[1743789778566,0.1,1819.9,1819.5,5.66758743]
[1743789778851,0.1,1819.9,1819.5,6.83886066]
[1743789779057,0.1,1819.9,1819.5,1.28806617]
[1743789779256,5.49599,1819.6,1819.4,0.17167743]
[1743789779456,5.49591,1819.6,1819.4,0.17167743]
[1743789779657,5.49601,1819.5,1819.2,0.17167743]
[1743789779858,5.49637,1819.4,1819.2,0.17167743]
[1743789780064,6.046247,1819.3,1819.2,0.17167743]
[1743789780285,5.49722,1819.1,1819.0,0.39402592]
[1743789780489,5.49726,1819.1,1818.8,0.39402592]
[1743789780785,5.49632,1819.4,1818.9,0.17167743]
[1743789780984,5.49663,1819.3,1819.0,0.17167743]
[1743789781146,5.49633,1819.4,1819.0,0.17167743]
[1743789781348,6.28891,1819.8,1819.2,5.49677]
[1743789781553,6.28891,1819.8,1819.2,10.99356]
[1743789781752,10.99102,1819.7,1819.3,0.17167743]
[1743789781944,6.28891,1819.8,1819.3,0.17167743]
[1743789782285,5.49601,1819.5,1819.4,0.56570335]
[1743789782459,6.045611,1819.5,1819.4,0.56570335]
[1743789782644,13.544711,1819.5,1819.4,0.17167743]
[1743789782845,5.49674,1819.3,1819.1,0.17167743]
[1743789783072,5.49674,1819.3,1819.2,0.17167743]
[1743789783260,5.49661,1819.3,1819.2,0.17167743]
[1743789783589,5.49635,1819.4,1819.2,0.17167743]
[1743789783885,5.49635,1819.4,1819.3,0.17167743]
[1743789784192,12.994721,1819.5,1819.3,0.17167743]
[1743789784193,6.30712,1819.5,1819.3,0.17167743]
[1743789784344,5.49631,1819.4,1819.3,0.17167743]
[1743789785171,11.80337,1819.5,1819.3,0.17167743]
[1743789785380,9.30712,1819.5,1819.4,0.17167743]
[1743789785591,0.8111,1819.5,1819.4,0.17167743]
[1743789785759,5.49583,1819.6,1819.4,0.56570335]
[1743789786147,5.49601,1819.5,1819.4,0.39402592]
[1743789786495,5.49601,1819.5,1819.4,0.17171373]
[1743789787161,8.49601,1819.5,1819.4,0.17171373]
[1743789787367,15.94921,1819.5,1819.4,3.73e-06]
[1743789787779,5.49829,1818.8,1818.5,0.39402592]
[1743789787986,10.99606,1818.9,1818.5,0.39402592]
[1743789788292,5.49843,1818.7,1818.6,0.39402592]
[1743789788454,10.99594,1818.9,1818.6,0.39402592]
[1743789788660,5.49843,1818.7,1818.6,0.39402592]
[1743789788868,6.31203,1818.7,1818.6,0.39402592]
[1743789789088,5.4994,1818.4,1817.6,6.8599]
[1743789789289,5.4994,1818.4,1817.8,5.50111]
[1743789789485,5.4994,1818.4,1817.9,5.50083]
[1743789789689,3.0,1818.5,1818.0,5.50036]
[1743789790001,3.8136,1818.7,1818.0,5.50036]
[1743789790299,8.49875,1818.6,1817.9,1.100194]
[1743789790455,13.99768,1818.6,1818.0,5.50041]
[1743789790652,8.49877,1818.6,1818.0,5.50041]
[1743789790879,9.31217,1818.7,1818.1,5.50007]
[1743789791090,3.0,1818.7,1818.2,6.27225]
[1743789791271,8.49844,1818.7,1818.2,6.27225]
[1743789791470,3.0,1818.7,1818.3,5.49954]
[1743789791761,3.0,1818.7,1818.2,1.34436774]
[1743789791762,5.49885,1818.6,1818.2,1.34436774]
[1743789792095,5.49865,1818.7,1818.2,0.7725]
[1743789792479,5.49875,1818.6,1818.2,0.7725]
[1743789792679,5.49805,1818.9,1818.3,5.4995]
[1743789792854,3.0,1818.8,1818.3,5.55449069]
[1743789793194,5.49814,1818.8,1818.3,5.49948]
[1743789793397,13.99645,1818.8,1818.3,5.49948]
[1743789794199,5.49854,1818.7,1818.2,0.7725]
[1743789794705,3.0,1818.9,1818.5,5.49903]
[1743789795162,8.49793,1818.9,1818.4,5.49922]
[1743789795363,8.49793,1818.9,1818.4,5.49917]
[1743789795564,3.0,1818.9,1818.4,5.49917]
[1743789795764,11.79533,1819.0,1818.5,5.49894]
[1743789795765,0.8,1819.0,1818.5,5.49894]
[1743789795979,5.49727,1819.1,1818.6,5.49859]
[1743789796695,10.99467,1819.1,1818.6,5.49859]
[1743789796904,5.49763,1819.0,1818.5,5.49894]
[1743789797086,3.0,1819.1,1818.3,6.096]
[1743789797282,5.49826,1818.8,1818.3,6.096]
[1743789797600,5.49826,1818.8,1818.3,11.5956]
[1743789797810,5.49787,1818.9,1818.3,11.5956]
[1743789797973,5.49787,1818.9,1818.4,10.9984]
[1743789798173,10.99522,1819.0,1818.5,5.49902]
[1743789798382,5.49752,1819.0,1818.5,5.49902]
[1743789798708,13.99462,1819.1,1818.6,5.49863]
[1743789799027,5.49695,1819.2,1818.7,0.7765]
[1743789799175,5.49741,1819.1,1818.7,0.7765]
[1743789799505,3.0,1819.1,1818.7,6.27478]
[1743789799665,8.49725,1819.1,1818.7,0.94826025]
[1743789800370,3.0,1819.1,1818.7,0.7765]
[1743789800562,5.49762,1819.0,1818.6,0.17176025]
[1743789800757,5.49694,1819.2,1818.5,0.17176025]
[1743789800983,5.49817,1818.8,1818.5,0.17176025]
[1743789801184,5.49873,1818.6,1818.5,0.17176025]
[1743789801578,5.49873,1818.6,1818.2,0.17176025]
[1743789801799,10.99847,1818.5,1818.2,0.17176025]
[1743789802099,5.49878,1818.6,1818.2,0.17176025]
[1743789802303,8.49852,1818.7,1818.2,5.49972]
[1743789802501,8.49852,1818.7,1818.3,5.49964]
[1743789802502,3.0,1818.7,1818.3,5.49964]
[1743789802675,3.43733275,1818.8,1818.3,5.49964]
[1743789802887,3.43733275,1818.8,1818.6,5.49861]
[1743789803087,3.43733275,1818.8,1818.6,6.29191]
[1743789803285,3.43733275,1818.8,1818.6,6.2919]
[1743789804110,8.93569275,1818.8,1818.4,0.98016025]
[1743789804283,3.78106603,1818.8,1818.4,5.49927]
[1743789804605,5.49783,1818.9,1818.4,5.4992]
[1743789804809,5.49861,1818.7,1818.4,0.17176025]
[1743789805015,5.49825,1818.8,1818.4,0.17176025]
[1743789805305,5.49824,1818.8,1818.4,0.17176025]
[1743789805471,5.49905,1818.5,1818.3,0.17176025]
[1743789805674,5.49881,1818.6,1818.3,0.17176025]
[1743789805869,0.549824,1818.7,1818.2,0.17176025]
[1743789806212,6.31053,1818.8,1818.3,5.49946]
[1743789806382,0.8124,1818.8,1818.2,5.67168025]
[1743789806588,5.49883,1818.6,1818.2,0.17176025]
[1743789806785,3.0,1818.9,1818.5,5.49877]
[1743789806983,3.0,1818.9,1818.5,0.8296]
[1743789807320,0.7962,1819.1,1818.7,5.49828]
[1743789807612,5.49678,1819.3,1818.8,5.49801]
[1743789807911,0.7927,1819.7,1818.8,1.099644]
[1743789807912,5.49637,1819.4,1818.8,1.099644]
[1743789808208,5.49637,1819.4,1818.8,10.99591]
[1743789808413,5.49664,1819.3,1818.8,10.99591]
[1743789808915,3.0,1819.6,1818.6,5.49862]
[1743789809076,5.49642,1819.4,1818.9,5.49771]
[1743789809276,5.49671,1819.3,1818.8,5.4981]
[1743789809492,5.49671,1819.3,1818.8,10.99607]
[1743789809773,10.99287,1819.4,1818.9,5.49769]
[1743789809976,5.49693,1819.2,1818.8,0.17173648]
[1743789810207,5.49693,1819.2,1818.7,5.49827]
[1743789810408,5.49732,1819.1,1818.6,5.49857]
[1743789810607,6.27852,1819.2,1818.6,0.17175687]
[1743789810771,5.49792,1818.9,1818.6,0.17175687]
[1743789810969,5.49752,1819.0,1818.6,0.17175687]
[1743789811174,3.0,1818.7,1818.3,0.94615687]
[1743789811398,5.49914,1818.5,1818.3,0.17175687]
[1743789811713,5.49914,1818.5,1818.0,11.94699687]
[1743789811909,0.821,1818.6,1818.0,0.94615687]
[1743789812209,5.49974,1818.3,1818.0,0.17175687]
[1743789812412,5.5002,1818.2,1818.0,0.17175687]
[1743789812618,5.50097,1817.9,1817.7,0.17175687]
[1743789812812,5.50059,1818.0,1817.5,5.50199]
[1743789813176,9.32835,1818.1,1817.5,0.17175687]
[1743789813381,5.50072,1818.0,1817.5,5.67370687]
[1743789813581,11.00149,1818.0,1817.5,5.67370687]
[1743789813883,5.50072,1818.0,1817.5,5.66868687]
[1743789814914,5.50097,1817.9,1817.5,0.16675687]
[1743789815316,5.50134,1817.8,1817.4,0.8165]
[1743789815473,5.50096,1817.9,1817.3,5.5026]
[1743789815878,20.0488,1818.1,1817.6,5.50165]
[1743789816105,9.048,1818.1,1817.3,5.50239]
[1743789816307,5.50069,1818.0,1817.5,5.50206]
[1743789816711,8.50043,1818.1,1817.6,5.50159]
[1743789817018,14.00094,1818.1,1817.6,5.50159]
[1743789817216,3.8072,1818.3,1817.6,5.50159]
[1743789817418,3.0,1818.1,1817.7,6.27104]
[1743789817721,5.49935,1818.4,1817.9,5.50074]
[1743789817939,3.0,1818.4,1817.9,5.50073]
[1743789818140,17.79744,1818.6,1818.1,5.50024]
[1743789818308,5.49925,1818.5,1818.0,5.50028]
[1743789818503,6.7996,1818.6,1817.7,0.7697]
[1743789818504,3.0,1818.4,1817.7,0.7697]
[1743789818730,5.79967,1818.3,1817.7,0.7697]
[1743789819048,5.49967,1818.3,1817.8,5.5011]
[1743789819236,5.49964,1818.3,1817.8,5.55605539]
[1743789819535,13.9989,1818.4,1817.9,5.50082]
[1743789819736,5.49906,1818.5,1818.0,5.5005]
[1743789820038,5.49906,1818.5,1818.1,5.50022]
[1743789820239,5.49877,1818.6,1818.1,5.50022]
[1743789820405,10.99773,1818.6,1818.1,5.50022]
[1743789820608,5.49905,1818.5,1818.0,5.50053]
[1743789820807,5.49905,1818.5,1817.9,11.0015]
[1743789821038,3.0,1818.2,1817.8,6.037]
[1743789821240,5.50048,1818.1,1817.7,0.7697]
[1743789821568,5.50194,1817.6,1817.4,0.8267]
[1743789821743,5.50206,1817.5,1817.1,0.9267]
[1743789821941,5.50237,1817.4,1817.1,0.9267]
[1743789822549,5.50284,1817.3,1817.1,0.1]
[1743789823044,5.50297,1817.2,1817.1,0.1]
[1743789823603,8.50297,1817.2,1817.1,0.1]
[1743789824816,14.52497,1817.2,1817.1,0.1]
[1743789825022,11.52497,1817.2,1817.1,0.1]
[1743789825218,5.50297,1817.2,1817.1,0.1]
[1743789825626,11.00576,1817.3,1817.1,0.1]
[1743789825830,5.50297,1817.2,1817.1,0.1]
[1743789832226,9.82547,1817.2,1817.1,1e-05]
[1743789832677,15.31647,1817.2,1817.1,1e-05]
[1743789832893,5.50544,1816.4,1816.2,0.7738]
[1743789833056,5.5051,1816.5,1816.1,0.1]
[1743789833451,6.29889,1816.6,1816.1,5.60617]
[1743789833686,5.5051,1816.5,1816.1,1.211262]
[1743789833867,6.29889,1816.6,1816.1,6.717452]
[1743789834092,5.50412,1816.9,1816.4,6.32454]
[1743789834260,5.50378,1817.0,1816.5,5.50508]
[1743789834465,5.50395,1816.9,1816.4,6.32467]
[1743789834659,5.50395,1816.9,1816.5,0.632467]
[1743789835189,11.00806,1816.9,1816.4,6.32451]
[1743789835345,5.50395,1816.9,1816.4,6.3245]
[1743789835549,5.50395,1816.9,1816.4,6.32459]
[1743789835788,5.50359,1817.0,1816.5,5.50503]
[1743789835993,5.50381,1817.0,1816.4,0.8193]
[1743789836195,5.5045,1816.7,1816.4,0.8193]
[1743789836495,11.00864,1816.8,1816.4,0.8193]
[1743789836691,5.50408,1816.9,1816.4,0.8193]
[1743789836901,5.50358,1817.0,1816.6,5.50476]
[1743789837053,5.50388,1816.9,1816.5,5.50492]
[1743789837252,5.50388,1816.9,1816.6,0.550492]
[1743789838087,8.92159646,1816.9,1816.6,0.550492]
[1743789838273,5.50437,1816.8,1816.4,0.8193]
[1743789838585,8.92164646,1816.9,1816.4,6.32468]
[1743789838765,14.42574646,1816.9,1816.4,6.32468]
[1743789839084,3.41771646,1816.9,1816.5,5.50493]
[1743789839264,8.92162646,1816.9,1816.5,6.687889]
[1743789839451,3.41771646,1816.9,1816.5,6.687889]
[1743789839788,5.50459,1816.7,1816.5,1.182959]
[1743789839972,5.50459,1816.7,1816.4,0.8193]
[1743789840297,5.50462,1816.7,1816.4,0.8193]
[1743789840811,11.0088,1816.8,1816.4,0.8193]
[1743789840970,3.41771646,1817.1,1816.4,0.8193]
[1743789841165,5.50389,1816.9,1816.5,5.50495]
[1743789841397,3.41771646,1817.1,1816.5,1.182962]
[1743789841565,8.92108646,1817.1,1816.7,5.50443]
[1743789841901,8.92108646,1817.1,1816.5,6.687942]
[1743789841902,5.50372,1817.0,1816.5,6.687942]
[1743789842061,5.50372,1817.0,1816.5,12.192932]
[1743789842261,5.50399,1816.9,1816.5,6.688022]
[1743789842500,5.50361,1817.0,1816.5,1.182962]
[1743789842697,5.50368,1817.0,1816.6,5.50477]
[1743789843003,5.50372,1817.0,1816.4,0.8193]
[1743789843180,8.92116646,1817.1,1816.4,0.8193]
[1743789843503,5.50448,1816.7,1816.4,0.8193]
[1743789843666,5.5049,1816.6,1816.4,0.8193]
[1743789844121,5.50523,1816.5,1816.2,0.8216]
[1743789844305,5.5046,1816.7,1816.2,6.970171]
[1743789844464,6.027,1816.9,1816.2,0.8216]
[1743789844665,5.50489,1816.6,1816.2,0.8216]
[1743789844906,5.50548,1816.4,1816.2,0.8216]
[1743789845207,5.50541,1816.4,1816.1,0.1]
[1743789845511,5.50512,1816.5,1816.1,0.15505976]
[1743789845803,5.50492,1816.6,1816.2,5.50589]
[1743789845999,5.50454,1816.7,1816.2,5.50587]
[1743789846206,8.50449,1816.7,1816.1,0.74535098]
[1743789846410,5.50541,1816.4,1816.1,0.74535098]
[1743789846576,6.41771646,1816.7,1816.1,0.1]
[1743789846778,6.41771646,1816.7,1816.1,5.60617]
[1743789846779,5.50494,1816.6,1816.1,5.60617]
[1743789847111,3.41771646,1816.7,1816.2,0.05505644]
[1743789847295,3.41771646,1816.7,1816.6,6.28078]
[1743789847609,1.76226004,1816.7,1816.6,12.48976786]
[1743789847809,1.76226004,1816.7,1816.6,2.74746065]
[1743789848027,1.76226004,1816.7,1816.6,0.94798786]
[1743789848529,1.76226004,1816.7,1816.6,0.776]
[1743789849519,1.76226004,1816.7,1816.5,0.17196792]
[1743789849720,1.76226004,1816.7,1816.5,5.67689792]
[1743789850019,1.76226004,1816.7,1816.6,5.50478]
[1743789850320,5.50327,1817.1,1816.6,6.79491471]
[1743789850488,5.50359,1817.0,1816.6,1.29013471]
[1743789850694,5.50448,1816.7,1816.6,0.17196792]
[1743789851222,8.50448,1816.7,1816.6,0.17196792]
[1743789851382,8.50448,1816.7,1816.2,0.17196792]
[1743789851383,5.50567,1816.4,1816.2,0.17196792]
[1743789851786,5.50508,1816.6,1816.2,0.17196792]
[1743789851990,5.50508,1816.6,1816.3,0.17196792]
[1743789852193,5.50539,1816.4,1816.3,0.17196792]
[1743789852426,8.50539,1816.4,1816.3,0.17196792]
[1743789852588,5.506,1816.2,1816.1,0.1]
[1743789853323,5.50581,1816.3,1816.1,0.1]
[1743789853530,5.50575,1816.3,1816.1,0.1]
[1743789853829,8.50541,1816.4,1816.1,0.1]
[1743789854126,0.7998,1816.6,1816.1,0.1]
[1743789854292,0.7998,1816.6,1816.2,0.17196792]
[1743789854293,5.50583,1816.3,1816.2,0.17196792]
[1743789854495,8.50583,1816.3,1816.2,0.17196792]
[1743789855091,5.506,1816.2,1816.1,0.1]
[1743789855895,5.50751,1815.7,1815.6,0.17196792]
[1743789856107,8.50751,1815.7,1815.6,0.17196792]
[1743789856794,5.50789,1815.6,1815.2,5.68085792]
[1743789857124,5.50792,1815.6,1815.2,1.37981571]
[1743789857503,3.0,1815.7,1815.2,0.17196792]
[1743789857504,5.50868,1815.4,1815.2,0.17196792]
[1743789857822,5.50897,1815.3,1815.1,0.27196792]
[1743789858123,5.50903,1815.2,1815.1,0.27196792]
[1743789858423,8.50903,1815.2,1815.1,0.1]
[1743789861888,8.50903,1815.2,1815.1,1e-05]
[1743789863522,6.27177,1815.3,1815.1,1e-05]
[1743789863523,5.5088,1815.3,1815.1,1e-05]
[1743789863889,3.0,1815.3,1815.1,1e-05]
[1743789864325,5.50851,1815.4,1815.1,1e-05]
[1743789864631,5.50823,1815.5,1815.1,1e-05]
[1743789864839,5.50733,1815.8,1815.2,0.7712]
[1743789864989,6.8173,1815.9,1815.2,0.7712]
[1743789865186,5.50826,1815.5,1815.2,0.7712]
[1743789865392,5.50831,1815.5,1815.2,0.7712]
[1743789865939,11.01593,1815.6,1815.2,0.7712]
[1743789866097,5.50754,1815.7,1815.2,6.27998]
[1743789866289,5.50691,1815.9,1815.4,5.50828]
[1743789866489,5.50691,1815.9,1815.5,6.058928]
[1743789866686,8.50632,1816.1,1815.5,0.550828]
[1743789866890,5.50824,1815.5,1815.2,0.94327729]
[1743789867130,5.50753,1815.7,1815.2,0.7712]
[1743789867327,11.01464,1815.8,1815.3,5.50863]
[1743789867629,5.50764,1815.7,1815.3,5.50863]
[1743789867826,5.50753,1815.7,1815.2,6.28009]
[1743789868034,5.50782,1815.6,1815.2,6.9081]
[1743789868392,5.50854,1815.4,1815.2,0.7712]
[1743789868591,5.50873,1815.3,1815.1,1e-05]
[1743789869131,5.50903,1815.2,1815.1,1e-05]
[1743789869313,6.33353,1815.2,1815.1,1e-05]
[1743789869513,9.33353,1815.2,1815.1,1e-05]
[1743789869831,8.50903,1815.2,1815.1,1e-05]
[1743789870046,3.0,1815.2,1815.1,1e-05]
[1743789870326,11.01714,1815.4,1815.1,1e-05]
[1743789870698,3.0,1815.5,1815.1,1e-05]
[1743789870699,14.01647,1815.5,1815.1,1e-05]
[1743789870896,5.50883,1815.3,1815.1,1e-05]
[1743789871095,5.50844,1815.4,1815.1,1e-05]
[1743789871753,5.50817,1815.5,1815.1,1e-05]
[1743789872053,14.01619,1815.6,1815.1,11.647428]
[1743789872232,5.50875,1815.3,1815.1,1e-05]
[1743789872750,5.50861,1815.4,1815.1,1e-05]
[1743789872953,11.01645,1815.5,1815.1,5.50934]
[1743789873143,11.0165,1815.5,1815.1,1e-05]
[1743789873546,8.50787,1815.6,1815.1,5.50904]
[1743789873759,8.50785,1815.6,1815.1,1.179922]
[1743789873984,5.50813,1815.5,1815.1,6.689102]
[1743789874292,8.50785,1815.6,1815.2,5.50897]
[1743789874494,8.50785,1815.6,1815.2,5.50887]
[1743789874687,5.50756,1815.7,1815.4,0.7872]
[1743789875005,11.01459,1815.8,1815.4,6.92519]
[1743789875158,5.50768,1815.7,1815.4,1.41677]
[1743789875358,5.50866,1815.4,1815.2,0.7852]
[1743789875563,5.50873,1815.3,1815.1,1e-05]
[1743789875797,5.50848,1815.4,1815.1,1e-05]
[1743789876198,5.50784,1815.6,1815.2,5.50887]
[1743789876400,5.50871,1815.4,1815.1,1e-05]
[1743789876584,6.028,1815.7,1815.1,1e-05]
[1743789876585,5.50893,1815.3,1815.1,1e-05]
[1743789876762,5.50903,1815.2,1815.1,1e-05]
[1743789877369,11.0179,1815.3,1815.1,1e-05]
[1743789877568,5.50848,1815.4,1815.1,1e-05]
[1743789878175,5.50882,1815.3,1815.1,1e-05]
[1743789878507,5.50903,1815.2,1815.1,1e-05]
[1743789879395,8.50903,1815.2,1815.1,1e-05]
[1743789881175,8.92017726,1815.2,1815.1,1e-05]
[1743789881379,8.50903,1815.2,1815.1,1e-05]
[1743789882123,5.50882,1815.3,1815.1,1e-05]
[1743789882426,5.50903,1815.2,1815.1,1e-05]
[1743789882928,15.36433,1815.2,1815.1,1e-05]
[1743789883091,15.91433,1815.2,1815.1,1e-05]
[1743789883478,9.88133,1815.2,1815.1,1e-05]
[1743789883722,15.91233,1815.2,1815.1,1e-05]
[1743789884829,15.90433,1815.2,1815.1,1e-05]
[1743789885127,15.35433,1815.2,1815.1,1e-05]
[1743789886520,15.90433,1815.2,1815.1,1e-05]
[1743789886906,15.35433,1815.2,1815.1,1e-05]
[1743789887088,5.92206479,1815.4,1815.1,1e-05]
[1743789887284,5.50691,1815.9,1815.2,0.8241]
[1743789887492,5.50802,1815.6,1815.2,1.62957112]
[1743789887933,5.50802,1815.6,1815.2,7.13860112]
[1743789888119,11.01528,1815.7,1815.3,5.50868]
[1743789888318,5.50784,1815.6,1815.3,0.17213212]
[1743789889025,5.50784,1815.6,1815.2,7.13850112]
[1743789889211,5.50723,1815.8,1815.3,0.71385011]
[1743789889410,11.01402,1815.9,1815.4,5.5083]
[1743789889590,5.50739,1815.8,1815.4,0.17213212]
[1743789889793,5.50739,1815.8,1815.4,5.68042212]
[1743789890185,11.0148,1815.8,1815.4,5.68042212]
[1743789890391,5.50773,1815.7,1815.4,0.17213212]
[1743789890617,5.50722,1815.8,1815.4,6.07643921]
[1743789890821,3.0,1815.7,1815.3,0.17213212]
[1743789891021,5.50831,1815.5,1815.3,0.17213212]
[1743789891321,5.50831,1815.5,1815.2,0.8241]
[1743789891628,5.50786,1815.6,1815.2,0.8241]
[1743789891795,5.50786,1815.6,1815.2,2.19770133]
[1743789892341,11.01588,1815.6,1815.2,2.19770133]
[1743789892546,5.5076,1815.7,1815.2,7.70668133]
[1743789892693,5.50748,1815.8,1815.4,5.50839]
[1743789892694,5.50736,1815.8,1815.4,5.50839]
[1743789892893,5.50736,1815.8,1815.4,6.610101]
[1743789893126,5.50736,1815.8,1815.4,6.78223312]
[1743789893302,3.0,1815.9,1815.4,0.17213212]
[1743789893491,5.50752,1815.7,1815.4,0.17213212]
[1743789893826,5.50752,1815.7,1815.3,5.50862]
[1743789894027,5.50785,1815.6,1815.2,12.01427212]
[1743789894214,5.50752,1815.7,1815.3,5.50872]
[1743789894408,5.50752,1815.7,1815.3,6.70996721]
[1743789894750,5.50806,1815.6,1815.3,1.37352933]
[1743789895032,5.50806,1815.6,1815.3,6.71011721]
[1743789895326,5.50802,1815.6,1815.3,1.20139721]
[1743789895524,5.50802,1815.6,1815.3,1.37352933]
[1743789895741,5.50814,1815.5,1815.2,0.99623212]
[1743789896030,5.50752,1815.7,1815.4,5.50833]
[1743789896225,5.50752,1815.7,1815.3,11.01733]
[1743789896431,5.50752,1815.7,1815.3,5.50857]
[1743789896730,5.50752,1815.7,1815.3,6.692736]
[1743789896947,5.50752,1815.7,1815.4,5.5084]
[1743789897113,5.50723,1815.8,1815.4,5.50826]
[1743789897314,11.01463,1815.8,1815.4,5.68034479]
[1743789897527,5.50753,1815.7,1815.4,5.68034479]
[1743789897734,8.50696,1815.9,1815.4,6.91766387]
[1743789898042,8.50696,1815.9,1815.5,5.50804]
[1743789898244,5.50723,1815.8,1815.5,5.50804]
[1743789898436,5.50723,1815.8,1815.5,5.68012479]
[1743789898642,3.0,1815.9,1815.5,0.17208479]
[1743789898832,5.50748,1815.8,1815.4,5.68050479]
[1743789899032,5.50726,1815.8,1815.4,5.68039479]
[1743789899232,3.0,1815.9,1815.4,0.17208479]
[1743789899436,5.50784,1815.6,1815.4,0.17208479]
[1743789899610,5.50784,1815.6,1815.2,6.33311]
[1743789899812,5.50753,1815.7,1815.3,5.50862]
[1743789900014,5.50753,1815.7,1815.3,11.0172]
[1743789900210,5.50722,1815.8,1815.3,1.41129643]
[1743789900447,5.50836,1815.5,1815.3,0.17208479]
[1743789900610,11.01703,1815.4,1815.2,0.8241]
[1743789900820,11.01707,1815.4,1815.2,0.8241]
[1743789901034,5.50814,1815.5,1815.2,0.8241]
[1743789901351,5.995,1815.6,1815.2,6.33292]
[1743789901554,11.01528,1815.7,1815.3,5.50856]
[1743789901749,5.50783,1815.6,1815.2,6.966213]
[1743789901954,5.50838,1815.5,1815.2,0.8241]
[1743789902154,8.50752,1815.7,1815.2,0.8241]
[1743789902359,5.50873,1815.3,1815.1,1e-05]
[1743789902564,5.50824,1815.5,1815.1,5.50909]
[1743789902855,5.50757,1815.7,1815.3,5.50871]
[1743789903029,5.50782,1815.6,1815.3,5.50871]
[1743789903230,5.50757,1815.7,1815.4,0.832]
[1743789903643,5.50782,1815.6,1815.4,0.832]
[1743789903846,5.50812,1815.5,1815.2,0.7969]
[1743789904017,5.5081,1815.6,1815.2,6.30591]
[1743789904221,5.50798,1815.6,1815.2,0.7969]
[1743789904458,5.50899,1815.3,1815.1,1e-05]
[1743789905022,11.01707,1815.4,1815.1,1e-05]
[1743789905254,5.5088,1815.3,1815.1,1e-05]
[1743789905763,5.50818,1815.5,1815.1,5.50933]